fUST/lending_fUST_20240803
["ID","MTS","AMOUNT","RATE_DAILY","PERIOD"]
[334028579,1722693040934,-500.0,0.00013698,2]
[334028580,1722693040943,-500.0,0.00013698,2]
[334028581,1722693040953,-503.10026611,0.00013698,2]
[334028582,1722693040962,-500.0,0.00013698,2]
[334028583,1722693040972,-500.0,0.00013698,2]
[334028584,1722693040982,-500.0,0.00013698,2]
[334028585,1722693040995,-502.39252143,0.00013698,2]
[334028586,1722693041004,-500.0,0.00013698,2]
[334028587,1722693041016,-500.0,0.00013698,2]
[334028588,1722693041027,-500.0,0.00013698,2]
[334028589,1722693041039,-4437.5,0.00013698,2]
[334028590,1722693041051,-500.0,0.00013698,2]
[334028591,1722693041062,-500.74060428,0.00013698,2]
[334028592,1722693041073,-1374.62846913,0.00013698,2]
[334028593,1722693041085,-180.88872784,0.00013698,2]
[334028594,1722693041095,-500.0,0.00013698,2]
[334028595,1722693041106,-500.0,0.00013698,2]
[334028596,1722693041116,-500.0,0.00013698,2]
[334028597,1722693041126,-500.0,0.00013698,2]
[334028598,1722693041137,-500.0,0.00013698,2]
[334028599,1722693041148,-500.0,0.00013698,2]
[334028600,1722693041161,-500.0,0.00013698,2]
[334028601,1722693041171,-500.0,0.00013698,2]
[334028602,1722693041182,-500.0,0.00013698,2]
[334028603,1722693041193,-507.16044617,0.00013698,2]
[334028604,1722693041203,-572.25,0.00013698,2]
[334028605,1722693041213,-500.0,0.00013698,2]
[334028606,1722693041224,-500.0,0.00013698,2]
[334028607,1722693041236,-518.53,0.00013698,2]
[334028608,1722693041247,-1144.61,0.00013698,2]
[334028609,1722693041259,-500.0,0.00013698,2]
[334028610,1722693041269,-1732.13,0.00013698,2]
[334028611,1722693041280,-853.01,0.00013698,2]
[334028612,1722693041292,-500.0,0.00013698,2]
[334028613,1722693041302,-500.0,0.00013698,2]
[334028614,1722693041313,-512.12513081,0.00013698,2]
[334028615,1722693041323,-500.0,0.00013698,2]
[334028616,1722693041332,-500.0,0.00013698,2]
[334028617,1722693041344,-500.0,0.00013698,2]
[334028618,1722693041356,-500.0,0.00013698,2]
[334028619,1722693041366,-151.0,0.00013698,2]
[334028620,1722693041377,-151.0,0.00013698,2]
[334028621,1722693041388,-151.0,0.00013698,2]
[334028622,1722693041400,-500.0,0.00013698,2]
[334028623,1722693041411,-500.0,0.00013698,2]
[334028624,1722693041422,-151.0,0.00013698,2]
[334028625,1722693041433,-151.0,0.00013698,2]
[334028626,1722693041444,-151.0,0.00013698,2]
[334028627,1722693041456,-151.0,0.00013698,2]
[334028628,1722693041465,-665.13,0.00013698,2]
[334028629,1722693041477,-1026.43,0.00013698,2]
[334028630,1722693041487,-500.0,0.00013698,2]
[334028631,1722693041500,-616.64,0.00013698,2]
[334028632,1722693041512,-500.0,0.00013698,2]
[334028633,1722693041524,-500.0,0.00013698,2]
[334028634,1722693041537,-500.0,0.00013698,2]
[334028635,1722693041548,-500.0,0.00013698,2]
[334028636,1722693041559,-1603.47,0.00013698,2]
[334028637,1722693041570,-500.0,0.00013698,2]
[334028638,1722693041583,-506.31900691,0.00013698,2]
[334028639,1722693041595,-500.0,0.00013698,2]
[334028640,1722693041607,-500.0,0.00013698,2]
[334028641,1722693041618,-221.92882327,0.00013698,2]
[334028642,1722693041628,-500.0,0.00013698,2]
[334028643,1722693041640,-500.0,0.00013698,2]
[334028644,1722693041651,-1098.39,0.00013698,2]
[334028645,1722693041663,-500.0,0.00013698,2]
[334028646,1722693041674,-1108.09,0.00013698,2]
[334028647,1722693041684,-500.0,0.00013698,2]
[334028648,1722693041706,-500.0,0.00013698,2]
[334028649,1722693041716,-500.0,0.00013698,2]
[334028650,1722693041725,-500.97354587,0.00013698,2]
[334028651,1722693041735,-500.0,0.00013698,2]
[334028652,1722693041745,-1714.38,0.00013698,2]
[334028653,1722693041754,-151.0,0.00013699,2]
[334028654,1722693041771,-151.0,0.00013699,2]
[334028655,1722693041781,-151.0,0.00013699,2]
[334028656,1722693041790,-151.0,0.00013699,2]
[334028657,1722693041799,-151.0,0.00013699,2]
[334028658,1722693041810,-154.299432,0.00013699,2]
[334028659,1722693041822,-249.735165,0.00013699,2]
[334028660,1722693041834,-2721.8496537,0.00013699,2]
[334028661,1722693041845,-151.0,0.00013699,2]
[334028662,1722693041857,-151.0,0.00013699,2]
[334028663,1722693041868,-151.0,0.00013699,2]
[334028664,1722693041878,-151.0,0.00013699,2]
[334028665,1722693041888,-151.0,0.00013699,2]
[334028666,1722693041898,-151.0,0.00013699,2]
[334028667,1722693041908,-151.0,0.00013699,2]
[334028668,1722693041918,-153.992695,0.00013699,2]
[334028669,1722693041928,-373.41363716,0.00013699,2]
[334028670,1722693041939,-2921.57949344,0.00013699,2]
[334028671,1722693041949,-261.19201773,0.000137,2]
[334028672,1722693041958,-150.112233,0.000137,2]
[334028673,1722693041967,-150.0,0.000138,2]
[334028674,1722693041976,-506.0,0.000138,2]
[334028675,1722693041986,-1967.95757611,0.000138,2]
[334028676,1722693041996,-294.2310959,0.000138,2]
[334028677,1722693042006,-150.112233,0.000138,2]
[334028678,1722693042016,-1410.0,0.00013801,2]
[334028679,1722693042027,-150.233,0.00013801,2]
[334028680,1722693042037,-150.108,0.00013881,2]
[334028681,1722693042046,-620.00384027,0.00013898,2]
[334028682,1722693042056,-724.62,0.0001397,2]
[334028683,1722693042065,-724.62,0.0001397,2]
[334028684,1722693042076,-724.62,0.0001397,2]
[334028685,1722693042086,-724.62,0.0001397,2]
[334028686,1722693042095,-724.77,0.0001397,2]
[334028687,1722693042106,-500.0,0.0001397,2]
[334028688,1722693042116,-500.0,0.0001397,2]
[334028689,1722693042125,-500.0,0.0001397,2]
[334028690,1722693042136,-500.0,0.0001397,2]
[334028691,1722693042146,-156.27133776,0.0001397,2]
[334028692,1722693042155,-1135.66,0.0001397,2]
[334028693,1722693042165,-1135.66,0.0001397,2]
[334028694,1722693042175,-1135.66,0.0001397,2]
[334028695,1722693042184,-1135.66,0.0001397,2]
[334028696,1722693042194,-1135.76740859,0.0001397,2]
[334028697,1722693042204,-500.0,0.00013972,2]
[334028698,1722693042213,-150.86392025,0.00013972,2]
[334028699,1722693042223,-505.5090072,0.00013972,2]
[334028700,1722693042233,-500.0,0.00013972,2]
[334028701,1722693042242,-500.0,0.00013972,2]
[334028702,1722693042251,-500.0,0.00013972,2]
[334028703,1722693042264,-500.0,0.00013972,2]
[334028704,1722693042276,-500.0,0.00013972,2]
[334028705,1722693042285,-500.0,0.00013972,2]
[334028706,1722693042295,-504.44702231,0.00013972,2]
[334028707,1722693042305,-500.0,0.00013972,2]
[334028708,1722693042314,-500.0,0.00013972,2]
[334028709,1722693042323,-504.66145901,0.00013972,2]
[334028710,1722693042333,-500.0,0.00013972,2]
[334028711,1722693042343,-507.17993449,0.00013972,2]
[334028712,1722693042352,-500.0,0.00013972,2]
[334028713,1722693042361,-500.0,0.00013972,2]
[334028714,1722693042371,-500.0,0.00013972,2]
[334028715,1722693042381,-648.77136838,0.00013972,2]
[334028716,1722693042390,-500.0,0.00013972,2]
[334028717,1722693042477,-628.49980668,0.00013972,2]
[334028718,1722693042488,-500.0,0.00013972,2]
[334028719,1722693042500,-500.0,0.00013972,2]
[334028720,1722693042511,-500.0,0.00013972,2]
[334028721,1722693042521,-500.0,0.00013972,2]
[334028722,1722693042530,-500.0,0.00013972,2]
[334028723,1722693042540,-500.0,0.00013972,2]
[334028724,1722693042551,-500.0,0.00013972,2]
[334028725,1722693042560,-554.60123994,0.00013972,2]
[334028726,1722693042569,-500.0,0.00013972,2]
[334028727,1722693042578,-500.0,0.00013972,2]
[334028728,1722693042588,-500.0,0.00013972,2]
[334028729,1722693042597,-500.0,0.00013972,2]
[334028730,1722693042606,-500.0,0.00013972,2]
[334028731,1722693042615,-554.21286629,0.00013972,2]
[334028732,1722693042624,-329.68998401,0.00013972,2]
[334028733,1722693042633,-502.11332486,0.00013972,2]
[334028734,1722693042642,-500.0,0.00013972,2]
[334028735,1722693042652,-500.0,0.00013972,2]
[334028736,1722693042661,-500.0,0.00013972,2]
[334028737,1722693042671,-500.0,0.00013972,2]
[334028738,1722693042681,-500.0,0.00013972,2]
[334028739,1722693042691,-500.0,0.00013972,2]
[334028740,1722693042700,-546.57103954,0.00013972,2]
[334028741,1722693042711,-500.0,0.00013972,2]
[334028742,1722693042721,-500.0,0.00013972,2]
[334028743,1722693042731,-345.13719742,0.00013972,2]
[334028744,1722693042741,-500.0,0.00013972,2]
[334028745,1722693042750,-852.0,0.00013972,2]
[334028746,1722693042760,-500.0,0.00013972,2]
[334028747,1722693042771,-533.81,0.00013972,2]
[334028748,1722693042780,-504.46646769,0.00013972,2]
[334028749,1722693042790,-500.0,0.00013972,2]
[334028750,1722693042800,-500.0,0.00013972,2]
[334028751,1722693042810,-500.0,0.00013972,2]
[334028752,1722693042819,-500.0,0.00013972,2]
[334028753,1722693042829,-500.0,0.00013972,2]
[334028754,1722693042838,-1110.36,0.00013972,2]
[334028755,1722693042848,-500.0,0.00013972,2]
[334028756,1722693042858,-500.0,0.00013972,2]
[334028757,1722693042867,-500.0,0.00013972,2]
[334028758,1722693042877,-500.0,0.00013972,2]
[334028759,1722693042886,-500.0,0.00013972,2]
[334028760,1722693042896,-668.13,0.00013972,2]
[334028761,1722693042905,-503.37099468,0.00013972,2]
[334028762,1722693042915,-500.0,0.00013972,2]
[334028763,1722693042924,-500.0,0.00013972,2]
[334028764,1722693042934,-500.0,0.00013972,2]
[334028765,1722693042943,-500.0,0.00013972,2]
[334028766,1722693042953,-500.0,0.00013972,2]
[334028767,1722693042962,-500.0,0.00013972,2]
[334028768,1722693042972,-500.0,0.00013972,2]
[334028769,1722693042982,-500.0,0.00013972,2]
[334028770,1722693042991,-500.0,0.00013972,2]
[334028771,1722693043001,-500.0,0.00013972,2]
[334028772,1722693043011,-500.0,0.00013972,2]
[334028773,1722693043022,-534.92900876,0.00013972,2]
[334028774,1722693043032,-500.0,0.00013972,2]
[334028775,1722693043042,-500.0,0.00013972,2]
[334028776,1722693043053,-500.0,0.00013972,2]
[334028777,1722693043064,-500.0,0.00013972,2]
[334028778,1722693043075,-500.0,0.00013972,2]
[334028779,1722693043085,-500.0,0.00013972,2]
[334028781,1722693043097,-500.0,0.00013972,2]
[334028783,1722693043105,-519.41162688,0.00013972,2]
[334028785,1722693043116,-500.0,0.00013972,2]
[334028787,1722693043127,-500.0,0.00013972,2]
[334028789,1722693043136,-500.0,0.00013972,2]
[334028791,1722693043146,-504.18482772,0.00013972,2]
[334028793,1722693043155,-500.0,0.00013972,2]
[334028795,1722693043165,-516.91,0.00013972,2]
[334028796,1722693043175,-527.52028041,0.00013972,2]
[334028798,1722693043186,-500.0,0.00013972,2]
[334028800,1722693043196,-500.0,0.00013972,2]
[334028802,1722693043205,-572.21799154,0.00013972,2]
[334028804,1722693043214,-500.0,0.00013972,2]
[334028806,1722693043224,-500.0,0.00013972,2]
[334028808,1722693043235,-500.0,0.00013972,2]
[334028809,1722693043246,-629.71,0.00013972,2]
[334028810,1722693043257,-500.0,0.00013972,2]
[334028811,1722693043268,-500.0,0.00013972,2]
[334028812,1722693043279,-1596.1,0.00013972,2]
[334028813,1722693043288,-500.0,0.00013972,2]
[334028814,1722693043298,-500.0,0.00013972,2]
[334028815,1722693043309,-500.0,0.00013972,2]
[334028816,1722693043320,-500.0,0.00013972,2]
[334028817,1722693043330,-500.0,0.00013972,2]
[334028818,1722693043340,-500.0,0.00013972,2]
[334028819,1722693043350,-500.0,0.00013972,2]
[334028820,1722693043360,-500.0,0.00013972,2]
[334028821,1722693043370,-517.39695905,0.00013972,2]
[334028822,1722693043379,-500.0,0.00013972,2]
[334028823,1722693043389,-500.0,0.00013972,2]
[334028824,1722693043398,-506.85806358,0.00013972,2]
[334028825,1722693043408,-500.0,0.00013972,2]
[334028826,1722693043418,-500.0,0.00013972,2]
[334028827,1722693043427,-500.0,0.00013972,2]
[334028828,1722693043438,-500.0,0.00013972,2]
[334028829,1722693043449,-500.0,0.00013972,2]
[334028830,1722693043458,-519.56,0.00013972,2]
[334028831,1722693043468,-500.0,0.00013972,2]
[334028832,1722693043479,-500.0,0.00013972,2]
[334028833,1722693043499,-502.62511725,0.00013972,2]
[334028835,1722693043512,-500.0,0.00013972,2]
[334028837,1722693043523,-500.0,0.00013972,2]
[334028838,1722693043533,-646.41151905,0.00013972,2]
[334028839,1722693043546,-500.0,0.00013972,2]
[334028840,1722693043555,-500.0,0.00013972,2]
[334028841,1722693043566,-255.02800001,0.00013972,2]
[334028842,1722693043577,-523.39870292,0.00013972,2]
[334028843,1722693043587,-500.0,0.00013972,2]
[334028844,1722693043597,-590.98981054,0.00013972,2]
[334028845,1722693043607,-500.0,0.00013972,2]
[334028846,1722693043616,-500.0,0.00013972,2]
[334028847,1722693043626,-500.0,0.00013972,2]
[334028848,1722693043636,-502.916762,0.00013972,2]
[334028849,1722693043645,-500.0,0.00013972,2]
[334028850,1722693043655,-500.0,0.00013972,2]
[334028851,1722693043665,-500.0,0.00013972,2]
[334028852,1722693043675,-500.0,0.00013972,2]
[334028853,1722693043685,-512.80833345,0.00013972,2]
[334028854,1722693043695,-868.28,0.00013972,2]
[334028855,1722693043705,-500.0,0.00013972,2]
[334028856,1722693043714,-361.1431352,0.00013972,2]
[334028857,1722693043724,-500.0,0.00013972,2]
[334028858,1722693043734,-346.95059457,0.00013972,2]
[334028859,1722693043743,-500.0,0.00013972,2]
[334028860,1722693043752,-500.0,0.00013972,2]
[334028861,1722693043763,-636.54,0.00013972,2]
[334028862,1722693043772,-441.23677215,0.00013972,2]
[334028863,1722693043781,-500.0,0.00013972,2]
[334028864,1722693043790,-500.0,0.00013972,2]
[334028865,1722693043800,-500.0,0.00013972,2]
[334028866,1722693043811,-500.0,0.00013972,2]
[334028867,1722693043821,-500.0,0.00013972,2]
[334028868,1722693043831,-500.0,0.00013972,2]
[334028869,1722693043841,-500.0,0.00013972,2]
[334028870,1722693043851,-503.67513818,0.00013972,2]
[334028871,1722693043861,-500.0,0.00013972,2]
[334028872,1722693043870,-936.17,0.00013972,2]
[334028873,1722693043880,-501.2659981,0.00013972,2]
[334028874,1722693043889,-500.0,0.00013972,2]
[334028875,1722693043899,-620.96,0.00013972,2]
[334028876,1722693043908,-500.0,0.00013972,2]
[334028877,1722693043918,-500.0,0.00013972,2]
[334028878,1722693043927,-500.0,0.00013972,2]
[334028879,1722693043937,-503.17009386,0.00013972,2]
[334028880,1722693043946,-500.0,0.00013972,2]
[334028881,1722693043956,-502.13144408,0.00013972,2]
[334028882,1722693043966,-500.0,0.00013972,2]
[334028883,1722693043975,-500.0,0.00013972,2]
[334028884,1722693043985,-500.0,0.00013972,2]
[334028885,1722693043994,-500.0,0.00013972,2]
[334028886,1722693044003,-1313.74,0.00013972,2]
[334028887,1722693044014,-501.77334858,0.00013972,2]
[334028888,1722693044023,-556.55546111,0.00013972,2]
[334028889,1722693044033,-500.0,0.00013972,2]
[334028890,1722693044042,-500.0,0.00013972,2]
[334028891,1722693044121,-500.0,0.00013972,2]
[334028892,1722693044134,-500.0,0.00013972,2]
[334028893,1722693044144,-500.0,0.00013972,2]
[334028894,1722693044156,-500.0,0.00013972,2]
[334028895,1722693044169,-500.0,0.00013972,2]
[334028896,1722693044179,-513.6920784,0.00013972,2]
[334028897,1722693044190,-500.0,0.00013972,2]
[334028898,1722693044200,-509.679767,0.00013972,2]
[334028899,1722693044210,-500.0,0.00013972,2]
[334028900,1722693044219,-500.0,0.00013972,2]
[334028901,1722693044229,-500.0,0.00013972,2]
[334028902,1722693044239,-901.21,0.00013972,2]
[334028903,1722693044249,-500.0,0.00013972,2]
[334028904,1722693044258,-389.40010898,0.00013972,2]
[334028905,1722693044269,-500.0,0.00013972,2]
[334028906,1722693044278,-277.89671186,0.00013972,2]
[334028914,1722693044832,-166.50947741,0.00013698,5]
[334028915,1722693044843,-2401.23,0.00013698,2]
[334028916,1722693044854,-500.0,0.00013698,2]
[334028917,1722693044864,-232.64888808,0.00013972,2]
[334028918,1722693044875,-500.0,0.00013972,2]
[334028919,1722693044887,-500.0,0.00013972,2]
[334028920,1722693044897,-500.0,0.00013972,2]
[334028921,1722693044908,-500.0,0.00013972,2]
[334028922,1722693044917,-503.1686396,0.00013972,2]
[334028923,1722693044928,-500.0,0.00013972,2]
[334028924,1722693044937,-500.0,0.00013972,2]
[334028925,1722693044947,-500.0,0.00013972,2]
[334028926,1722693044956,-761.59,0.00013972,2]
[334028927,1722693044966,-500.0,0.00013972,2]
[334028928,1722693044976,-500.0,0.00013972,2]
[334028929,1722693044986,-273.17894821,0.00013972,2]
[334028930,1722693044996,-500.0,0.00013972,2]
[334028931,1722693045007,-500.0,0.00013972,2]
[334028932,1722693045016,-520.95628014,0.00013972,2]
[334028933,1722693045026,-500.0,0.00013972,2]
[334028934,1722693045036,-500.0,0.00013972,2]
[334028935,1722693045045,-500.0,0.00013972,2]
[334028936,1722693045056,-1270.35,0.00013972,2]
[334028937,1722693045065,-500.0,0.00013972,2]
[334028938,1722693045075,-500.0,0.00013972,2]
[334028939,1722693045085,-500.0,0.00013972,2]
[334028940,1722693045094,-500.0,0.00013972,2]
[334028941,1722693045104,-500.0,0.00013972,2]
[334028942,1722693045114,-500.0,0.00013972,2]
[334028943,1722693045123,-500.0,0.00013972,2]
[334028944,1722693045132,-526.06723139,0.00013972,2]
[334028945,1722693045142,-501.7600935,0.00013972,2]
[334028946,1722693045152,-500.0,0.00013972,2]
[334028947,1722693045162,-500.0,0.00013972,2]
[334028948,1722693045175,-500.0,0.00013972,2]
[334028949,1722693045186,-500.0,0.00013972,2]
[334028950,1722693045196,-500.0,0.00013972,2]
[334028951,1722693045205,-501.04584901,0.00013972,2]
[334028952,1722693045215,-2487.26,0.00013972,2]
[334028953,1722693045304,-308.47554453,0.00013972,2]
[334028954,1722693045315,-504.39572741,0.00013972,2]
[334028955,1722693045326,-2181.45,0.00013972,2]
[334028956,1722693045337,-500.0,0.00013972,2]
[334028957,1722693045348,-501.12752463,0.00013972,2]
[334028958,1722693045358,-1040.16,0.00013972,2]
[334028959,1722693045368,-500.0,0.00013972,2]
[334028960,1722693045377,-500.0,0.00013972,2]
[334028961,1722693045387,-580.11517769,0.00013972,2]
[334028962,1722693045398,-500.0,0.00013972,2]
[334028963,1722693045408,-500.0,0.00013972,2]
[334028964,1722693045417,-2091.67,0.00013972,2]
[334028965,1722693045428,-500.0,0.00013972,2]
[334028966,1722693045439,-500.0,0.00013972,2]
[334028967,1722693045450,-8312.34,0.00013972,2]
[334028968,1722693045461,-503.28484902,0.00013972,2]
[334028969,1722693045472,-503.70317355,0.00013972,2]
[334028970,1722693045482,-253.39550413,0.00013972,2]
[334028971,1722693045493,-500.0,0.00013972,2]
[334028972,1722693045505,-507.1117221,0.00013972,2]
[334028973,1722693045521,-500.0,0.00013972,2]
[334028974,1722693045530,-2779.48,0.00013972,2]
[334028975,1722693045542,-500.0,0.00013972,2]
[334028976,1722693045551,-461.0832888,0.00013972,2]
[334028977,1722693045560,-500.0,0.00013972,2]
[334028978,1722693045570,-500.0,0.00013972,2]
[334028979,1722693045581,-1349.38,0.00013972,2]
[334028980,1722693045590,-500.0,0.00013972,2]
[334028981,1722693045600,-500.0,0.00013972,2]
[334028982,1722693045609,-500.0,0.00013972,2]
[334028983,1722693045619,-500.0,0.00013972,2]
[334028984,1722693045631,-500.0,0.00013972,2]
[334028985,1722693045640,-542.94,0.00013972,2]
[334028986,1722693045651,-603.95,0.00013972,2]
[334028987,1722693045661,-500.0,0.00013972,2]
[334028988,1722693045672,-242.57750089,0.00013972,2]
[334028989,1722693045682,-500.0,0.00013972,2]
[334028990,1722693045693,-506.79221079,0.00013972,2]
[334028991,1722693045704,-669.01,0.00013972,2]
[334028992,1722693045714,-500.0,0.00013972,2]
[334028993,1722693045725,-500.0,0.00013972,2]
[334028994,1722693045738,-502.54136392,0.00013972,2]
[334028995,1722693045749,-500.0,0.00013972,2]
[334028996,1722693045761,-500.0,0.00013972,2]
[334028997,1722693045772,-971.34,0.00013972,2]
[334028998,1722693045781,-500.0,0.00013972,2]
[334028999,1722693045792,-2164.5,0.00013972,2]
[334029000,1722693045803,-500.0,0.00013972,2]
[334029001,1722693045814,-500.0,0.00013972,2]
[334029002,1722693045823,-500.0,0.00013972,2]
[334029003,1722693045833,-500.0,0.00013972,2]
[334029004,1722693045843,-193.6297432,0.00013972,2]
[334029005,1722693045853,-500.0,0.00013972,2]
[334029006,1722693045864,-500.0,0.00013972,2]
[334029007,1722693045873,-500.0,0.00013972,2]
[334029008,1722693045882,-1967.44,0.00013972,2]
[334029009,1722693045892,-500.0,0.00013972,2]
[334029010,1722693045901,-500.0,0.00013972,2]
[334029011,1722693045911,-564.71,0.00013972,2]
[334029012,1722693045920,-500.0,0.00013972,2]
[334029013,1722693045930,-500.0,0.00013972,2]
[334029014,1722693045941,-6678.29,0.00013972,2]
[334029015,1722693045950,-500.0,0.00013972,2]
[334029016,1722693045960,-520.24,0.00013972,2]
[334029017,1722693045969,-774.19,0.00013972,2]
[334029018,1722693045979,-500.0,0.00013972,2]
[334029019,1722693045988,-500.0,0.00013972,2]
[334029020,1722693045998,-500.0,0.00013972,2]
[334029021,1722693046007,-628.37,0.00013972,2]
[334029022,1722693046017,-500.0,0.00013972,2]
[334029023,1722693046029,-500.0,0.00013972,2]
[334029024,1722693046040,-500.0,0.00013972,2]
[334029025,1722693046051,-500.0,0.00013972,2]
[334029026,1722693046062,-500.0,0.00013972,2]
[334029027,1722693046073,-500.0,0.00013972,2]
[334029028,1722693046084,-890.25,0.00013972,2]
[334029029,1722693046095,-500.0,0.00013972,2]
[334029030,1722693046106,-500.0,0.00013972,2]
[334029031,1722693046118,-500.0,0.00013972,2]
[334029032,1722693046128,-500.0,0.00013972,2]
[334029033,1722693046137,-507.47,0.00013972,2]
[334029034,1722693046148,-500.0,0.00013972,2]
[334029035,1722693046158,-500.0,0.00013972,2]
[334029036,1722693046169,-500.0,0.00013972,2]
[334029037,1722693046179,-2633.59,0.00013972,2]
[334029038,1722693046189,-908.6,0.00013972,2]
[334029039,1722693046200,-500.0,0.00013972,2]
[334029040,1722693046209,-500.0,0.00013972,2]
[334029041,1722693046220,-907.04,0.00013972,2]
[334029042,1722693046231,-272.37734654,0.00013972,2]
[334029043,1722693046241,-501.58892371,0.00013972,2]
[334029044,1722693046253,-500.0,0.00013972,2]
[334029045,1722693046263,-500.0,0.00013972,2]
[334029046,1722693046273,-500.0,0.00013972,2]
[334029047,1722693046283,-500.0,0.00013972,2]
[334029048,1722693046293,-500.0,0.00013972,2]
[334029049,1722693046303,-500.0,0.00013972,2]
[334029050,1722693046313,-500.0,0.00013972,2]
[334029051,1722693046322,-500.0,0.00013972,2]
[334029052,1722693046331,-500.0,0.00013972,2]
[334029053,1722693046341,-4437.5,0.00013972,2]
[334029054,1722693046350,-500.0,0.00013972,2]
[334029055,1722693046360,-500.0,0.00013972,2]
[334029056,1722693046369,-572.25,0.00013972,2]
[334029057,1722693046378,-529.8246672,0.00013972,2]
[334029058,1722693046387,-518.53,0.00013972,2]
[334029059,1722693046397,-1144.61,0.00013972,2]
[334029060,1722693046406,-1732.13,0.00013972,2]
[334029061,1722693046415,-853.01,0.00013972,2]
[334029062,1722693046425,-511.95552001,0.00013972,2]
[334029063,1722693046434,-500.0,0.00013972,2]
[334029065,1722693046443,-500.0,0.00013972,2]
[334029067,1722693046453,-500.0,0.00013972,2]
[334029069,1722693046462,-508.56390336,0.00013972,2]
[334029071,1722693046472,-508.57107346,0.00013972,2]
[334029073,1722693046481,-500.0,0.00013972,2]
[334029075,1722693046490,-500.0,0.00013972,2]
[334029077,1722693046503,-665.13,0.00013972,2]
[334029078,1722693046512,-1026.43,0.00013972,2]
[334029079,1722693046521,-616.64,0.00013972,2]
[334029081,1722693046530,-500.0,0.00013972,2]
[334029083,1722693046541,-500.0,0.00013972,2]
[334029085,1722693046551,-500.0,0.00013972,2]
[334029087,1722693046560,-506.43384656,0.00013972,2]
[334029088,1722693046570,-1603.47,0.00013972,2]
[334029089,1722693046581,-500.0,0.00013972,2]
[334029090,1722693046590,-500.0,0.00013972,2]
[334029091,1722693046599,-500.0,0.00013972,2]
[334029092,1722693046609,-500.0,0.00013972,2]
[334029093,1722693046618,-500.0,0.00013972,2]
[334029094,1722693046628,-1098.39,0.00013972,2]
[334029095,1722693046638,-500.0,0.00013972,2]
[334029096,1722693046647,-1108.09,0.00013972,2]
[334029097,1722693046657,-500.0,0.00013972,2]
[334029098,1722693046666,-500.0,0.00013972,2]
[334029099,1722693046676,-500.0,0.00013972,2]
[334029100,1722693046748,-502.77716288,0.00013972,2]
[334029101,1722693046759,-1714.38,0.00013972,2]
[334029102,1722693046769,-2401.23,0.00013972,2]
[334029103,1722693046778,-500.0,0.00013972,2]
[334029104,1722693046787,-1091.50397563,0.00014,2]
[334029105,1722693046798,-3447.48692336,0.00014157,2]
[334029106,1722693046807,-300.0,0.000142,5]
[334029107,1722693046818,-3200.0,0.00014241,2]
[334029108,1722693046828,-280.85375443,0.00014246,2]
[334029109,1722693046837,-500.0,0.00014246,2]
[334029110,1722693046848,-267.628151,0.00014246,2]
[334029111,1722693046860,-504.92247799,0.00014246,2]
[334029112,1722693046871,-500.0,0.00014246,2]